Cogmind - Beta 15 --- EXPLORER MODE // 2025.06.03 @ 19:33:45 Player: Minty Result: Destroyed by P-80 Master with Gamma Rifle Performance ------------- Evolutions (8) 4000 Regions Visited (16) 3200 Robots Destroyed (0) 0 Value Destroyed (90) 90 Prototype IDs (39) 780 Alien Tech Used (0) 0 Bonus (9086) 9086 TOTAL SCORE: 17156 Bonus ------- No Salvage 1500 Pacifist 5087 Follower Combat Kills 199 Entered Garrisons 200 Registered with UFD 300 Met Optimus in HQ 500 Met Imprinter 300 Met Optimus at Protoforge 1000 Cogmind --------- Core Integrity 0/1450 Matter 300/300 Energy 99/100 System Corruption 5% Temperature Cool (0) Movement Core (50) Location -2/Protoforge Parts ------- > --- POWER (2) -------- (None) > --- PROPULSION (8) --- (None) > --- UTILITY (12) ----- Advanced Signal Interpreter > --- WEAPON (2) ------- (None) > --- INVENTORY (5) ---- Medium Storage Unit Peak State ------------ > --- POWER ------------ Light Quantum Reactor Improved Quantum Reactor > --- PROPULSION ------- Impulse Thruster Impulse Thruster Cooled Field Propulsion Drive Cooled Field Propulsion Drive Improved Diametric Drive Improved Q-thruster Improved Q-thruster Improved Q-thruster > --- UTILITY ---------- Medium Storage Unit Machine Analyzer Advanced Sensor Array Advanced Signal Interpreter Long-range Terrain Scanner Advanced Terrain Scan Processor Advanced Terrain Scan Processor Improved Reaction Control System Experimental Hardlight Generator Hacking Suite Makeshift Hacking Suite Makeshift Hacking Suite > --- WEAPON ----------- Improved Plasma Cutter Makeshift Axe > --- INVENTORY -------- Light Antimatter Reactor Light Quantum Reactor Nuclear Pulse Thruster Field Propulsion Drive Advanced ECM Suite Improved Cloaking Device Point Defense System Advanced System Shield Advanced System Restoration Module Advanced System Restoration Module [Rating: 159] Favorites ----------- Power Ion Engine Engine Ion Engine Power Core Fission Core Reactor Light Quantum Reactor Propulsion Improved Flight Unit Leg Aluminum Leg Hover Unit Gravjet Array Flight Unit Improved Flight Unit Utility Medium Storage Unit Device Sensor Array Storage Medium Storage Unit Processor Advanced Signal Interpreter Hackware Makeshift Hacking Suite Protection Propulsion Shielding Weapon Hammer Energy Gun Warp Gun Special Weapon Improved Plasma Cutter Impact Weapon Hammer Slashing Weapon Makeshift Axe Build | -11 -10 -9 -9 -9 -9 -6 -6 -6 -5 -5 -5 -4 -3 -2 -2 -2 ------- Run | Yrd Mat Mat Sto Rec Scr Fac Low Zio Pro Fac Gar Fac Res Res Tes Frg Slots Evolved 17 | . 1 2 . . . 6 . . . 2 . 2 2 2 . . Power 1 | . . . . . . . . . . . . 1 . . . . Propulsion 6 | . . 1 . . . 4 . . . 1 . . . . . . Utility 10 | . 1 1 . . . 2 . . . 1 . 1 2 2 . . Weapon . | . . . . . . . . . . . . . . . . . Parts Attached 72 | 5 5 2 2 . 5 11 . 1 . 4 1 7 6 11 3 9 Power 11 | 1 . . . . 1 1 . . . . . 3 . 3 1 1 Engine 2 | 1 . . . . 1 . . . . . . . . . . . Core 2 | . . . . . . 1 . . . . . 1 . . . . Reactor 7 | . . . . . . . . . . . . 2 . 3 1 1 Propulsion 24 | 2 . . 2 . 2 6 . . . . . 1 3 4 . 4 Treads . | . . . . . . . . . . . . . . . . . Leg 3 | 2 . . 1 . . . . . . . . . . . . . Wheel . | . . . . . . . . . . . . . . . . . Hover 1 | . . . . . . . . . . . . . . . . 1 Flight 20 | . . . 1 . 2 6 . . . . . 1 3 4 . 3 Utility 32 | 2 3 2 . . 2 4 . . . 4 1 2 3 4 1 4 Device 16 | . . 1 . . . 3 . . . 1 1 1 1 3 1 4 Storage 2 | 1 1 . . . . . . . . . . . . . . . Processor 8 | . 1 1 . . 1 . . . . 1 . 1 2 1 . . Hackware 3 | . . . . . . 1 . . . 2 . . . . . . Protection 3 | 1 1 . . . 1 . . . . . . . . . . . Artifact . | . . . . . . . . . . . . . . . . . Weapon 5 | . 2 . . . . . . 1 . . . 1 . . 1 . Energy Gun 1 | . . . . . . . . . . . . . . . 1 . Energy Cannon . | . . . . . . . . . . . . . . . . . Ballistic Gun . | . . . . . . . . . . . . . . . . . Ballistic Cannon . | . . . . . . . . . . . . . . . . . Launcher . | . . . . . . . . . . . . . . . . . Special Weapon 1 | . . . . . . . . . . . . 1 . . . . Impact Weapon 2 | . 2 . . . . . . . . . . . . . . . Slashing Weapon 1 | . . . . . . . . 1 . . . . . . . . Piercing Weapon . | . . . . . . . . . . . . . . . . . Special Melee Weapon . | . . . . . . . . . . . . . . . . . Unidentified Prototypes 11 | . . . 1 . . . . . . . . . 2 2 3 3 Parts Lost 24 | . . . . . . 1 . . . . . . . . . 23 Power 3 | . . . . . . . . . . . . . . . . 3 Propulsion 12 | . . . . . . 1 . . . . . . . . . 11 Utility 9 | . . . . . . . . . . . . . . . . 9 Weapon . | . . . . . . . . . . . . . . . . . Highest Loss Streak 11 | . . . . . . 1 . . . . . . . . . 11 To Critical Strikes . | . . . . . . . . . . . . . . . . . Average Backups 7 | . 4 9 11 15 12 6 9 9 9 9 10 8 7 8 10 1 Power . | . 1 1 1 1 . . 1 1 1 1 1 . . 1 2 . Propulsion 1 | . . . 2 5 4 1 1 1 1 . . 1 2 2 1 . Utility 5 | . 3 7 7 9 7 4 7 7 7 7 8 7 5 4 6 1 Weapon . | . . 1 . . . . . . . . . . . . . . Tool/Special . | . . . . . . . . . . . . . . . . . Unused Backups 20 | 2 . . 3 . 5 2 . . 1 . . 1 . 1 . 5 Power . | . . . . . . . . . . . . . . . . . Propulsion 5 | 2 . . . . . . . . . . . . . 1 . 2 Utility 15 | . . . 3 . 5 2 . . 1 . . 1 . . . 3 Weapon . | . . . . . . . . . . . . . . . . . Tool/Special . | . . . . . . . . . . . . . . . . . Average Slot Usage (%) 74 | . 80 72 91 100 100 92 100 93 93 93 94 99 97 99 100 30 Engine 4 | . 12 10 10 10 10 2 . . . . . . . . . . Core 1 | . . . . . . 3 6 6 6 5 5 5 4 . . . Reactor 1 | . . . . . . . . . . . . 4 4 7 8 2 Leg 9 | . 25 20 28 30 21 . . . . . . . . . . . Flight 17 | . . . . . 8 37 43 43 43 44 44 40 36 33 33 12 Device 8 | . . 1 10 10 10 6 12 12 12 8 5 9 12 15 16 5 Storage 5 | . 12 10 10 10 7 5 6 6 6 5 5 5 4 4 4 1 Processor 11 | . 5 12 20 20 20 12 12 12 7 8 11 10 11 16 16 4 Hackware 4 | . . . . . . 4 6 6 6 14 16 15 13 12 12 2 Protection 1 | . 7 8 . . 2 5 . . 4 . . . . . . . Impact Weapon 7 | . 17 10 12 20 20 12 12 1 . . . . . . . . Slashing Weapon 1 | . . . . . . . . 5 6 5 5 5 4 4 4 . Peak Build Rating 159 | 5 10 10 17 17 25 59 59 61 62 71 72 96 118 154 159 157 Average Rating 46 | 3 7 9 13 17 18 44 59 60 61 69 71 94 107 147 153 50 On Entrance 57 | . 5 9 10 17 17 25 59 59 61 62 70 72 96 117 152 154 Naked Turns . | . . . . . . . . . . . . . . . . . Heaviest Build 61 | 16 40 20 30 30 30 26 26 26 26 26 24 40 40 53 53 61 Greatest Support 68 | 20 20 20 33 33 33 38 38 38 38 43 43 45 51 67 68 68 Greatest Overweight (x) 1 | . 1 . . . . . . . . . . . . . . . Average Overweight (x) . | . . . . . . . . . . . . . . . . . Largest Inventory Capacity 15 | 10 15 10 15 15 15 10 10 10 10 10 10 10 10 10 10 10 Average Capacity 9 | 8 10 10 12 15 12 9 10 10 10 10 10 10 10 10 10 6 Most Carried 15 | 4 9 9 15 15 15 10 9 10 10 10 10 10 10 10 10 10 Average Carried 8 | . 4 9 11 15 12 6 9 9 9 9 10 9 8 9 9 3 Final Capacity 15 | 10 10 10 15 15 5 10 10 10 10 10 10 10 10 10 10 5 Final Carried 15 | 2 9 9 15 15 5 9 9 10 10 10 10 10 9 10 10 1 Class Distribution -------------------- 33% | Hacker-Mutant 28% | Commander-Mutant 25% | Hacker-Sprinter 8% | Hacker-Scout Dominant Class ---------------- Hacker-Mutant | -10/Materials Hacker-Mutant | -9/Materials Commander-Mutant | -9/Storage Commander-Mutant | -9/Recycling Commander-Mutant | -9/Scraptown Commander-Sprinter | -6/Factory Hacker-Sprinter | -6/Lower Caves Hacker-Sprinter | -6/Zion Hacker-Sprinter | -5/Proximity Caves Hacker-Sprinter | -5/Factory Hacker-Sprinter | -5/Garrison Hacker-Sprinter | -4/Factory Hacker-Sprinter | -3/Research Hacker-Scout | -2/Research Hacker-Scout | -2/Testing Hacker-Mutant | -2/Protoforge Resources | -11 -10 -9 -9 -9 -9 -6 -6 -6 -5 -5 -5 -4 -3 -2 -2 -2 ----------- Run | Yrd Mat Mat Sto Rec Scr Fac Low Zio Pro Fac Gar Fac Res Res Tes Frg Matter Collected 1266 | 150 69 90 40 . . 83 . 132 50 . 60 20 105 86 139 242 Remotely . | . . . . . . . . . . . . . . . . . Salvage Created . | . . . . . . . . . . . . . . . . . Parts . | . . . . . . . . . . . . . . . . . Haulers Intercepted . | . . . . . . . . . . . . . . . . . Recyclers Shooed 1 | 1 . . . . . . . . . . . . . . . . Parts Field Recycled . | . . . . . . . . . . . . . . . . . Retrieved Matter . | . . . . . . . . . . . . . . . . . Parts Self-Destructed . | . . . . . . . . . . . . . . . . . Prevented . | . . . . . . . . . . . . . . . . . Kills | -11 -10 -9 -9 -9 -9 -6 -6 -6 -5 -5 -5 -4 -3 -2 -2 -2 ------- Run | Yrd Mat Mat Sto Rec Scr Fac Low Zio Pro Fac Gar Fac Res Res Tes Frg Combat Hostiles Destroyed . | . . . . . . . . . . . . . . . . . Classes Destroyed . | . . . . . . . . . . . . . . . . . Best Kill Streak . | . . . . . . . . . . . . . . . . . Combat Bots Only . | . . . . . . . . . . . . . . . . . Max Kills in Single Turn . | . . . . . . . . . . . . . . . . . Gunslinging . | . . . . . . . . . . . . . . . . . Exploded . | . . . . . . . . . . . . . . . . . Melee . | . . . . . . . . . . . . . . . . . Uniques/NPCs Destroyed . | . . . . . . . . . . . . . . . . . Combat | -11 -10 -9 -9 -9 -9 -6 -6 -6 -5 -5 -5 -4 -3 -2 -2 -2 -------- Run | Yrd Mat Mat Sto Rec Scr Fac Low Zio Pro Fac Gar Fac Res Res Tes Frg Hostile Shots Fired 524 | . 37 . . 6 . 50 . . 13 . 11 10 4 40 11 342 Missed 243 | . 9 . . 1 . 24 . . 5 . 7 5 1 23 6 162 Hits 281 | . 28 . . 5 . 26 . . 8 . 4 5 3 17 5 180 Melee 1 | . . . . . . . . . . . . . . . . 1 Projectile 280 | . 28 . . 5 . 26 . . 8 . 4 5 3 17 5 179 Critical Strikes 23 | . . . . . . 1 . . . . . 1 . 3 1 17 Part Disruptions 1 | . . . . . . . . . . . . . . . . 1 Damage Taken 3898 | . 133 . . 46 . 257 . . 95 . 42 73 50 328 84 2790 Core 1643 | . 41 . . . . 89 . . 35 . 20 . . 58 . 1400 Absorbed by Shields 228 | . . . . . . . . . . . 8 . . . . 220 Redirected to Shielding 19 | . . . . . . 5 . . 14 . . . . . . . Ignored by Resistances 2401 | . 97 . . 28 . 153 . . 55 . 28 46 30 187 49 1728 Regen/Repaired (Parts) 129 | . . . . . . . . 95 . . . . . . 34 . Core Remaining (%) 95 | 100 83 . . . 100 . . . 85 . 98 100 100 . . . Volleys Fired . | . . . . . . . . . . . . . . . . . Largest . | . . . . . . . . . . . . . . . . . Hottest . | . . . . . . . . . . . . . . . . . Shots Fired . | . . . . . . . . . . . . . . . . . Gun . | . . . . . . . . . . . . . . . . . Cannon . | . . . . . . . . . . . . . . . . . Launcher . | . . . . . . . . . . . . . . . . . Special . | . . . . . . . . . . . . . . . . . Kinetic . | . . . . . . . . . . . . . . . . . Thermal . | . . . . . . . . . . . . . . . . . Explosive . | . . . . . . . . . . . . . . . . . Electromagnetic . | . . . . . . . . . . . . . . . . . Robot Hit Streak . | . . . . . . . . . . . . . . . . . Robot Miss Streak . | . . . . . . . . . . . . . . . . . Penetration Max . | . . . . . . . . . . . . . . . . . Secondary Targets . | . . . . . . . . . . . . . . . . . Shots Hit Robots . | . . . . . . . . . . . . . . . . . Core Hits 1 | 1 . . . . . . . . . . . . . . . . Critical Kills . | . . . . . . . . . . . . . . . . . Critical Parts Destroyed . | . . . . . . . . . . . . . . . . . Critical Strikes . | . . . . . . . . . . . . . . . . . Melee Attacks 57 | . . 1 17 . . 4 . . . 1 . 15 . 5 8 6 Impact 22 | . . 1 17 . . 4 . . . . . . . . . . Slashing 35 | . . . . . . . . . . 1 . 15 . 5 8 6 Piercing . | . . . . . . . . . . . . . . . . . Sneak Attacks . | . . . . . . . . . . . . . . . . . Combat Hostiles . | . . . . . . . . . . . . . . . . . Follow-up Attacks . | . . . . . . . . . . . . . . . . . Damage Inflicted 27 | 27 . . . . . . . . . . . . . . . . Guns . | . . . . . . . . . . . . . . . . . Cannons . | . . . . . . . . . . . . . . . . . Explosions . | . . . . . . . . . . . . . . . . . Melee . | . . . . . . . . . . . . . . . . . Ramming 27 | 27 . . . . . . . . . . . . . . . . Kinetic . | . . . . . . . . . . . . . . . . . Thermal . | . . . . . . . . . . . . . . . . . Explosive . | . . . . . . . . . . . . . . . . . Electromagnetic . | . . . . . . . . . . . . . . . . . Impact . | . . . . . . . . . . . . . . . . . Slashing . | . . . . . . . . . . . . . . . . . Piercing . | . . . . . . . . . . . . . . . . . Highest Corruption 5 | . 1 . . . . . . . . . . 1 . . . 5 Average Corruption 4 | . 1 . . . . . . . . . . 1 . . . 4 Corruption Purged 4 | . . . . . . . . . . . . . . . . 4 Corruption Blocked . | . . . . . . . . . . . . . . . . . Effects 31 | . . . . . . . . . . . . . . . . 31 Message Errors 6 | . . . . . . . . . . . . . . . . 6 Matter Fused 6 | . . . . . . . . . . . . . . . . 6 Heat Flow Errors 3 | . . . . . . . . . . . . . . . . 3 Energy Discharges 10 | . . . . . . . . . . . . . . . . 10 Parts Fused 1 | . . . . . . . . . . . . . . . . 1 Data Loss (minor) 4 | . . . . . . . . . . . . . . . . 4 Data Loss (major) 1 | . . . . . . . . . . . . . . . . 1 Overload Shots . | . . . . . . . . . . . . . . . . . Overflow Damage . | . . . . . . . . . . . . . . . . . Projectiles . | . . . . . . . . . . . . . . . . . Explosions . | . . . . . . . . . . . . . . . . . Melee . | . . . . . . . . . . . . . . . . . Knockbacks . | . . . . . . . . . . . . . . . . . Impact . | . . . . . . . . . . . . . . . . . Kinetic . | . . . . . . . . . . . . . . . . . Secondary . | . . . . . . . . . . . . . . . . . Self-Inflicted Damage . | . . . . . . . . . . . . . . . . . Shots . | . . . . . . . . . . . . . . . . . Rammed . | . . . . . . . . . . . . . . . . . Targets Rammed 10 | 10 . . . . . . . . . . . . . . . . Kicked 10 | 10 . . . . . . . . . . . . . . . . Crushed . | . . . . . . . . . . . . . . . . . Highest Temperature 342 | . . . . . . 210 . . 8 297 57 232 131 159 280 342 Average Temperature 62 | . . . . . . 75 . . 5 132 16 63 52 35 89 64 Received Heat Transfer 560 | . 6 . . 27 . 9 . . 63 . 21 55 9 36 . 334 Siege Activations . | . . . . . . . . . . . . . . . . . Martial Activations . | . . . . . . . . . . . . . . . . . Shielding Activations . | . . . . . . . . . . . . . . . . . Robots Disrupted . | . . . . . . . . . . . . . . . . . Combat Hostiles . | . . . . . . . . . . . . . . . . . Robots Corrupted . | . . . . . . . . . . . . . . . . . Combat Hostiles . | . . . . . . . . . . . . . . . . . Parts Fried . | . . . . . . . . . . . . . . . . . Impact Corruptions . | . . . . . . . . . . . . . . . . . Robots Melted . | . . . . . . . . . . . . . . . . . Combat Hostiles . | . . . . . . . . . . . . . . . . . Parts Melted . | . . . . . . . . . . . . . . . . . Heat Transferred . | . . . . . . . . . . . . . . . . . Parts Sabotaged . | . . . . . . . . . . . . . . . . . Parts Stolen . | . . . . . . . . . . . . . . . . . Parts Stripped . | . . . . . . . . . . . . . . . . . Power Chain Reactions . | . . . . . . . . . . . . . . . . . Alert | -11 -10 -9 -9 -9 -9 -6 -6 -6 -5 -5 -5 -4 -3 -2 -2 -2 ------- Run | Yrd Mat Mat Sto Rec Scr Fac Low Zio Pro Fac Gar Fac Res Res Tes Frg Maximum Alert Level 1 | . . . . . . . . . . . . . . . . 1 Low Security (%) 97 | 100 100 100 100 100 . 100 . . . 100 100 100 100 100 100 92 Level 1 2 | . . . . . . . . . . . . . . . . 7 Level 2 . | . . . . . . . . . . . . . . . . . Level 3 . | . . . . . . . . . . . . . . . . . Level 4 . | . . . . . . . . . . . . . . . . . Level 5 . | . . . . . . . . . . . . . . . . . High Security . | . . . . . . . . . . . . . . . . . Max Security . | . . . . . . . . . . . . . . . . . Peak Influence 245 | . 3 4 49 44 . 105 . . . 15 148 57 15 71 34 245 Initial 57 | . . . . . . . . . . 7 8 57 1 5 24 . Average 31 | . . . 6 3 . 23 . . . 5 66 9 2 14 9 63 Influence Increases 1975 | . 3 4 137 63 . 233 . . 45 35 160 131 15 93 63 993 Destroy 0b10 Robot/C 160 | . . . 80 40 . 20 . . . . 20 . . . . . Destroy 0b10 Robot/NC 5 | . . . . . . 5 . . . . . . . . . . Destroy Leader 40 | . . . 30 . . 10 . . . . . . . . . . Allied During Kill 10 | . . . 5 4 . 1 . . . . . . . . . . Trap Triggered on 0b10 20 | . . . . . . . . . . . . . . . . 20 Successful Hack 153 | . 3 . 12 19 . 47 . . . 1 . 24 . 2 6 39 Disable Machine 36 | . . 4 8 . . . . . . 4 . . . 4 12 4 Anti-Garrison Action 50 | . . . . . . . . . . . 50 . . . . . Destroy Structure 76 | . . . 2 . . . . . . . . 32 . 12 15 15 Partial Spotted 240 | . . . . . . 30 . . . 30 30 60 15 15 . 60 Lose Combat Pursuer 1185 | . . . . . . 120 . . 45 . 60 15 . 60 30 855 Influence Decreases 1925 | . 3 4 137 63 . 228 5 . 30 35 27 275 4 49 122 943 Entered New Map 157 | . . . . . . . 3 . . 8 7 91 3 10 35 . Time Decay 1448 | . 3 4 115 63 . 127 2 . 30 27 . 166 1 39 56 815 Lost Part 121 | . . . . . . 10 . . . . . . . . . 111 Lost Ally 129 | . . . . . . 91 . . . . 20 18 . . . . Purge Threat 70 | . . . 22 . . . . . . . . . . . 31 17 Squads Dispatched 27 | . 1 1 . . . 3 . . . 1 . 5 . 4 3 9 Investigation 17 | . 1 . . . . 2 . . . 1 . 3 . 3 1 6 Extermination 4 | . . . . . . 1 . . . . . 1 . 1 1 . Reinforcement 6 | . . 1 . . . . . . . . . 1 . . 1 3 Assault . | . . . . . . . . . . . . . . . . . Garrison . | . . . . . . . . . . . . . . . . . Intercept . | . . . . . . . . . . . . . . . . . Searches Triggered . | . . . . . . . . . . . . . . . . . Construction Impeded . | . . . . . . . . . . . . . . . . . Haulers Reinforced . | . . . . . . . . . . . . . . . . . Active Scanning Responses . | . . . . . . . . . . . . . . . . . Cargo Convoy Interrupts . | . . . . . . . . . . . . . . . . . Stealth | -11 -10 -9 -9 -9 -9 -6 -6 -6 -5 -5 -5 -4 -3 -2 -2 -2 --------- Run | Yrd Mat Mat Sto Rec Scr Fac Low Zio Pro Fac Gar Fac Res Res Tes Frg Distress Signals 13 | . . . 2 . . 3 . . . 1 . . . . 1 6 Communications Jammed . | . . . . . . . . . . . . . . . . . Distress Signals . | . . . . . . . . . . . . . . . . . Times Spotted 249 | . 4 1 4 1 . 20 . . 8 3 7 12 1 18 8 162 Peak Tracking Total 31 | . 4 1 2 1 . 8 . . 5 4 5 7 1 13 4 31 Tactical Retreats 41 | . . . . . . 4 . . 2 . 1 3 . 1 1 29 Traps | -11 -10 -9 -9 -9 -9 -6 -6 -6 -5 -5 -5 -4 -3 -2 -2 -2 ------- Run | Yrd Mat Mat Sto Rec Scr Fac Low Zio Pro Fac Gar Fac Res Res Tes Frg Traps Triggered 9 | . . . . . . 1 . . . . 6 . . 2 . . Indirectly . | . . . . . . . . . . . . . . . . . Trap Hack Attempts . | . . . . . . . . . . . . . . . . . Triggered . | . . . . . . . . . . . . . . . . . Disarmed 6 | . . . . . . . . . . . . . . 6 . . Reprogrammed 4 | . . . . . . . . . . . . . . . . 4 Reused 2 | . . . . . . . . . . . . . . . . 2 Traps Extracted . | . . . . . . . . . . . . . . . . . Installed . | . . . . . . . . . . . . . . . . . Triggered 2 | . . . . . . . . . . . . . . . . 2 Machines | -11 -10 -9 -9 -9 -9 -6 -6 -6 -5 -5 -5 -4 -3 -2 -2 -2 ---------- Run | Yrd Mat Mat Sto Rec Scr Fac Low Zio Pro Fac Gar Fac Res Res Tes Frg Machines Disabled 9 | . . 1 2 . . . . . . 1 . . . 1 3 1 Max in Single Turn 1 | . . 1 1 . . . . . . 1 . . . 1 1 1 Garrison Access 1 | . . . . . . . . . . . . . . . 1 . Machines Repaired . | . . . . . . . . . . . . . . . . . Machines Dismantled . | . . . . . . . . . . . . . . . . . Machines Sabotaged . | . . . . . . . . . . . . . . . . . Overloaded Fab Kills . | . . . . . . . . . . . . . . . . . Hacking | -11 -10 -9 -9 -9 -9 -6 -6 -6 -5 -5 -5 -4 -3 -2 -2 -2 --------- Run | Yrd Mat Mat Sto Rec Scr Fac Low Zio Pro Fac Gar Fac Res Res Tes Frg Machines Accessed 65 | . 1 . 8 4 . 11 . . . 3 2 10 . 6 4 16 Terminals 45 | . 1 . 8 4 . 9 . . . 2 2 4 . 4 2 9 Fabricators 6 | . . . . . . . . . . . . 3 . . . 3 Repair Stations 2 | . . . . . . . . . . . . . . . 1 1 Recycling Units 10 | . . . . . . 2 . . . . . 3 . 2 . 3 Scanalyzers . | . . . . . . . . . . . . . . . . . Garrison Access 2 | . . . . . . . . . . 1 . . . . 1 . Total Hacks 173 | . 6 . 23 16 . 28 . . . 9 4 25 . 17 7 38 Successful 120 | . 3 . 12 11 . 17 . . . 8 4 24 . 12 6 23 Failed 53 | . 3 . 11 5 . 11 . . . 1 . 1 . 5 1 15 Catastrophic 1 | . 1 . . . . . . . . . . . . . . . Database Lockouts . | . . . . . . . . . . . . . . . . . Manual 85 | . 4 . 9 11 . 21 . . . 2 3 12 . 8 2 13 Terminals 131 | . 6 . 23 16 . 26 . . . 8 4 8 . 14 4 22 Fabricators 24 | . . . . . . . . . . . . 14 . . . 10 Repair Stations 4 | . . . . . . . . . . . . . . . 1 3 Recycling Units 11 | . . . . . . 2 . . . . . 3 . 3 . 3 Scanalyzers . | . . . . . . . . . . . . . . . . . Garrison Access 3 | . . . . . . . . . . 1 . . . . 2 . Terminal Hacks 68 | . 2 . 10 9 . 9 . . . 5 3 5 . 8 4 13 Record 1 | . . . . . . . . . . . . . . . . 1 Part Schematic 4 | . . . 1 . . 2 . . . . . 1 . . . . Robot Analysis 2 | . . . . . . . . . . . . . . . . 2 Prototype ID Bank 10 | . . . . 7 . 1 . . . . . . . 1 1 . Open Door 4 | . . . 3 . . . . . . . 1 . . . . . Level Access Points 3 | . . . . . . 1 . . . 1 . 1 . . . . Branch Access Points 3 | . . . . . . 1 . . . . . . . 1 1 . Emergency Access Points 2 | . . . . . . . . . . . . . . . . 2 Machine Index 2 | . . . . . . . . . . 1 . 1 . . . . Terminal Index 4 | . . . 1 . . 1 . . . 1 . . . . . 1 Fabricator Index 1 | . . . . . . 1 . . . . . . . . . . Recycling Unit Index 1 | . . . . . . . . . . . . . . . . 1 Garrison Index 1 | . . . . . . . . . . . . . . . . 1 Alert Level 3 | . 1 . 1 . . . . . . . . . . . 1 . Unreport Threat 3 | . . . 1 . . . . . . . . . . . 1 1 Locate Traps 7 | . . . 2 . . . . . . . . 1 . 2 . 2 Disarm Traps 1 | . . . . . . . . . . . . . . 1 . . Reprogram Traps 1 | . . . . . . . . . . . . . . . . 1 Dispatch Records 2 | . . . . . . . . . . 1 . . . 1 . . Security Status 1 | . . . . . . 1 . . . . . . . . . . Patrol Status 2 | . . . . . . . . . . 1 . . . . . 1 Transport Status 1 | . 1 . . . . . . . . . . . . . . . Recall Investigation 1 | . . . . . . . . . . . . . . 1 . . Recall Extermination 1 | . . . . . . 1 . . . . . . . . . . Recall Reinforcements 1 | . . . . . . . . . . . . 1 . . . . Zone Layout 4 | . . . 1 2 . . . . . . . . . 1 . . Garrison Registry 1 | . . . . . . . . . . . 1 . . . . . Patrol Navigation 1 | . . . . . . . . . . . 1 . . . . . Fabricator Hacks 11 | . . . . . . . . . . . . 8 . . . 3 Network Status 2 | . . . . . . . . . . . . 2 . . . . Load Schematic 4 | . . . . . . . . . . . . 2 . . . 2 Build 5 | . . . . . . . . . . . . 4 . . . 1 Repair Station Hacks . | . . . . . . . . . . . . . . . . . Recycling Unit Hacks . | . . . . . . . . . . . . . . . . . Scanalyzer . | . . . . . . . . . . . . . . . . . Garrison Access Hacks 2 | . . . . . . . . . . 1 . . . . 1 . Unlock Access 1 | . . . . . . . . . . 1 . . . . . . Seal Access 1 | . . . . . . . . . . . . . . . 1 . Unauthorized Hacks 39 | . 1 . 2 2 . 8 . . . 2 1 11 . 4 1 7 Terminals 23 | . 1 . 2 2 . 6 . . . 2 1 3 . 2 . 4 Track 4 | . . . . . . . . . . . . 1 . 1 . 2 Assimilate 3 | . . . . . . . . . . 1 . 2 . . . . Botnet 9 | . 1 . 2 2 . 1 . . . 1 . . . . . 2 Disrupt 1 | . . . . . . . . . . . . . . 1 . . Skim 5 | . . . . . . 5 . . . . . . . . . . Override 1 | . . . . . . . . . . . 1 . . . . . Fabricators 5 | . . . . . . . . . . . . 5 . . . . Prioritize 3 | . . . . . . . . . . . . 3 . . . . Liberate 1 | . . . . . . . . . . . . 1 . . . . Haulers 1 | . . . . . . . . . . . . 1 . . . . Repair Stations 1 | . . . . . . . . . . . . . . . 1 . Patch 1 | . . . . . . . . . . . . . . . 1 . Recycling Units 10 | . . . . . . 2 . . . . . 3 . 2 . 3 Fedlink 10 | . . . . . . 2 . . . . . 3 . 2 . 3 Scanalyzers . | . . . . . . . . . . . . . . . . . Garrison Access . | . . . . . . . . . . . . . . . . . Data Cores Recovered 1 | . . . . . . 1 . . . . . . . . . . Used . | . . . . . . . . . . . . . . . . . Hacking Detections 55 | . 1 . 8 4 . 9 . . . 3 2 7 . 5 3 13 Full Trace Events 8 | . 1 . . 2 . . . . . 1 . . . 1 . 3 Feedback Events 1 | . 1 . . . . . . . . . . . . . . . Corruption 1 | . 1 . . . . . . . . . . . . . . . Feedback Blocked . | . . . . . . . . . . . . . . . . . Robot Schematics Acquired . | . . . . . . . . . . . . . . . . . Robots Built 2 | . . . . . . . . . . . . 2 . . . . Authchips . | . . . . . . . . . . . . . . . . . Time 245 | . . . . . . . . . . . . 245 . . . . Total Robot Build Rating 12 | . . . . . . . . . . . . 12 . . . . Part Schematics Acquired 4 | . . . 1 . . 2 . . . . . 1 . . . . Parts Built 6 | . . . . . . . . . . . . 4 . . . 2 Authchips . | . . . . . . . . . . . . . . . . . Time 125 | . . . . . . . . . . . . 83 . . . 42 Total Part Build Rating 32 | . . . . . . . . . . . . 16 . . . 16 Parts Repaired . | . . . . . . . . . . . . . . . . . Time . | . . . . . . . . . . . . . . . . . Parts Recycled . | . . . . . . . . . . . . . . . . . Recycled Matter . | . . . . . . . . . . . . . . . . . Retrieved Matter . | . . . . . . . . . . . . . . . . . Retrieved Components . | . . . . . . . . . . . . . . . . . Parts Scanalyzed . | . . . . . . . . . . . . . . . . . Part Schematics Acquired . | . . . . . . . . . . . . . . . . . Parts Damaged . | . . . . . . . . . . . . . . . . . Bothacking | -11 -10 -9 -9 -9 -9 -6 -6 -6 -5 -5 -5 -4 -3 -2 -2 -2 ------------ Run | Yrd Mat Mat Sto Rec Scr Fac Low Zio Pro Fac Gar Fac Res Res Tes Frg Used RIF Installer . | . . . . . . . . . . . . . . . . . Robots Hacked . | . . . . . . . . . . . . . . . . . Non-combat . | . . . . . . . . . . . . . . . . . Combat . | . . . . . . . . . . . . . . . . . Robot Hacks Applied . | . . . . . . . . . . . . . . . . . Relay Couplers Released . | . . . . . . . . . . . . . . . . . Fabnet Peak Effective % . | . . . . . . . . . . . . . . . . . Robots Rewired . | . . . . . . . . . . . . . . . . . Allies Hacked 1 | . . . . . . . . . . . . 1 . . . . Hacks Repelled . | . . . . . . . . . . . . . . . . . Allies | -11 -10 -9 -9 -9 -9 -6 -6 -6 -5 -5 -5 -4 -3 -2 -2 -2 -------- Run | Yrd Mat Mat Sto Rec Scr Fac Low Zio Pro Fac Gar Fac Res Res Tes Frg Total Allies 16 | . . . 10 . . . . . . 1 2 3 . . . . Largest Group 10 | . . . 10 8 8 7 . . . 1 2 2 . . . . Highest-Rated Group 119 | . . . 88 64 64 56 . . . 23 89 119 . . . . Highest-Rated Ally 93 | . . . 16 8 8 8 . . . 23 51 93 . . . . Total Orders 1 | . . . . . 1 . . . . . . . . . . . STAY 1 | . . . . . 1 . . . . . . . . . . . Ally Attacks 75 | . . . 16 13 . 39 . . . . 7 . . . . . Total Damage 922 | . . . 173 132 . 345 . . . . 272 . . . . . Kills 9 | . . . 4 2 . 2 . . . . 1 . . . . . Allies Corrupted . | . . . . . . . . . . . . . . . . . Allies Melted 2 | . . . . . . . . . . . . . . . . 2 Intel | -11 -10 -9 -9 -9 -9 -6 -6 -6 -5 -5 -5 -4 -3 -2 -2 -2 ------- Run | Yrd Mat Mat Sto Rec Scr Fac Low Zio Pro Fac Gar Fac Res Res Tes Frg Active Infowar (turns) 3171 | . . 18 442 471 636 269 20 162 122 49 4 379 54 122 136 287 Sensors 3024 | . . 18 442 471 636 269 20 162 122 49 4 360 54 122 136 159 Terrain 429 | . . . . . . . . . . . . . 52 122 136 119 Machine Analysis 380 | . . . . . . . . . . . . . . 122 136 122 Cloaking 92 | . . . . . . . . . . . . . . 87 . 5 ECM 167 | . . . . . . . . . . . . 32 . . . 135 Robot Analysis Total 2 | . . . . . . . . . . . . . . . . 2 Derelict Logs Recovered 2 | . . . . . . . . 2 . . . . . . . . Drone Launches . | . . . . . . . . . . . . . . . . . Drone Recoveries . | . . . . . . . . . . . . . . . . . Exploration | -11 -10 -9 -9 -9 -9 -6 -6 -6 -5 -5 -5 -4 -3 -2 -2 -2 ------------- Run | Yrd Mat Mat Sto Rec Scr Fac Low Zio Pro Fac Gar Fac Res Res Tes Frg Turns Passed 4954 | 103 196 100 442 471 636 269 20 162 122 49 121 395 54 122 136 1556 Spaces Moved 8588 | 81 144 79 292 354 679 709 77 682 360 172 344 746 216 477 379 2797 Core 119 | 25 . . . . . . . . . . . . . . . 94 Treads . | . . . . . . . . . . . . . . . . . Legs 1296 | 56 144 79 292 354 371 . . . . . . . . . . . Wheels . | . . . . . . . . . . . . . . . . . Hover . | . . . . . . . . . . . . . . . . . Flight 7173 | . . . . . 308 709 77 682 360 172 344 746 216 477 379 2703 Fastest Speed 12 | 50 120 120 120 120 34 21 22 22 22 19 19 19 17 12 12 12 Average Speed 38 | 98 122 120 120 120 80 24 22 22 22 19 19 19 17 16 16 28 Slowest Speed 190 | 120 190 120 120 120 120 28 22 22 22 19 19 19 19 17 17 50 Overloaded Moves 111 | . . . . . . . . . . . . . . 15 40 56 Propulsion Burnouts . | . . . . . . . . . . . . . . . . . Robots Hopped 91 | . . . . . . 13 . . 1 1 . 6 8 5 1 56 Potential Cave-ins 3 | . . . . . . . . . . . . 3 . . . . Cave-ins Triggered . | . . . . . . . . . . . . . . . . . Exploration Rate (%) 33 | 4 37 9 39 54 52 21 15 77 63 5 48 22 7 16 52 51 Regions Visited 16 Branch Regions 8 Pre-discovered Areas 3 | . . . . . . 2 . 1 . . . . . . . . Known Exits Taken 15 | 1 1 1 1 1 1 1 1 1 1 1 . 1 1 1 1 . Unknown Exits Taken . | . . . . . . . . . . . . . . . . . Scrap Searched 10 | . . . . . 2 . . 5 3 . . . . . . . Spaces Dug 31 | . . . 2 . . . . . . . . 15 . 4 5 5 Terrain Destroyed 31 | . . . 2 . . . . . . . . 15 . 4 5 5 Melee 31 | . . . 2 . . . . . . . . 15 . 4 5 5 Projectile . | . . . . . . . . . . . . . . . . . AOE . | . . . . . . . . . . . . . . . . . Terrain Rammed . | . . . . . . . . . . . . . . . . . Walls Destroyed . | . . . . . . . . . . . . . . . . . Machines Disabled . | . . . . . . . . . . . . . . . . . Actions | -11 -10 -9 -9 -9 -9 -6 -6 -6 -5 -5 -5 -4 -3 -2 -2 -2 --------- Run | Yrd Mat Mat Sto Rec Scr Fac Low Zio Pro Fac Gar Fac Res Res Tes Frg Total 10052 | 101 163 81 357 400 765 788 79 692 402 185 397 976 222 509 437 3498 Wait 1160 | . 3 . 22 47 70 50 3 5 31 4 30 196 3 . 40 656 Move 8406 | 81 143 78 291 353 678 682 76 681 357 169 342 733 199 466 375 2702 Hop 74 | . . . . . . 13 . . 1 1 . 6 8 5 1 39 Pick Up 68 | 4 4 . 14 . . 13 . 1 5 3 . 6 3 7 1 7 Fast Attach 21 | 5 5 1 2 . . 1 . 1 . . . . . 1 . 5 Attach 30 | . 2 . 1 . . 9 . . 1 2 . 3 3 2 . 7 Detach 15 | . 5 . 1 . . 1 . . 1 . . . 1 . . 6 Swap 57 | . 1 1 1 . 7 4 . 2 2 3 1 10 3 13 9 . Drop 70 | 2 . . 8 . 10 5 . 2 4 2 . 7 2 10 1 17 Fire . | . . . . . . . . . . . . . . . . . Melee 55 | . . 1 17 . . 2 . . . 1 . 15 . 5 8 6 Ram . | . . . . . . . . . . . . . . . . . Kick 9 | 9 . . . . . . . . . . . . . . . . Crush . | . . . . . . . . . . . . . . . . . Escape Stasis 33 | . . . . . . 8 . . . . 24 . . . 1 . Rewire 1 | . . . . . . . . . . . . . . . . 1 Trap . | . . . . . . . . . . . . . . . . . Miscellaneous 53 | . . . . . . . . . . . . . . . 1 52 Route ------- -11/Scrapyard -10/Materials -9/Materials -9/Storage -9/Recycling -9/Scraptown (discovered 2 exits: *Fac x2) -6/Factory (discovered 6 exits: Fac x4 / *Low x2) -6/Lower Caves -6/Zion -5/Proximity Caves -5/Factory (discovered 6 exits: Fac x4 / Ext / Gar) -5/Garrison (discovered 3 exits: *Fac x3) -4/Factory (discovered 5 exits: *Res x4 / *Upp) -3/Research -2/Research (discovered 3 exits: *Acc / *Tes x2) -2/Testing (discovered 2 exits: *Sec / *Frg) -2/Protoforge (discovered 1 exit: *Acc) History --------- Turn | Location | Event 8 | -11/Scrapyard | Identified exit to Materials 8 | -11/Scrapyard | Discovered exit to Materials (range 16) 104 | -11/Scrapyard | Entered Materials 104 | -10/Materials | Evolved 1 slot: Utility x1 295 | -10/Materials | Identified exit to Materials 295 | -10/Materials | Discovered exit to Materials (range 6) 300 | -10/Materials | Build established: Hacker-Mutant 300 | -10/Materials | Entered another Materials area 300 | -9/Materials | Evolved 2 slots: Propulsion x1, Utility x1 358 | -9/Materials | Identified exit to Storage 358 | -9/Materials | Discovered exit to Storage (range 4) 400 | -9/Materials | Entered Storage 505 | -9/Storage | Assisted by bots powering up and referring to "LRC-V3" 805 | -9/Storage | Build established: Commander-Mutant 817 | -9/Storage | Used back door to open Recycling access 817 | -9/Storage | Identified exit to Recycling 817 | -9/Storage | Discovered exit to Recycling (range 4) 842 | -9/Storage | Entered Recycling 842 | -9/Recycling | Accompanied by 8 allies 1247 | -9/Recycling | Scanned before Scraplab entrance 1265 | -9/Recycling | Entered Scraplab 1275 | -9/Recycling | Identified exit to Scraptown 1275 | -9/Recycling | Discovered exit to Scraptown (range 3) 1313 | -9/Recycling | Entered Scraptown 1313 | -9/Scraptown | Accompanied by 8 allies 1466 | -9/Scraptown | Heard Great Nut preacher, LISTEN AND RECITE! 1467 | -9/Scraptown | Identified exit to Factory 1467 | -9/Scraptown | Discovered exit to Factory (range 13) 1576 | -9/Scraptown | Visited UFD Registry 1576 | -9/Scraptown | Registered with UFD as "Novamachine" 1614 | -9/Scraptown | Visited Science Testing Area 1635 | -9/Scraptown | Visited Junk Repository 1683 | -9/Scraptown | Visited Sword Containment 1797 | -9/Scraptown | Visited A0-MCA Data Center 1799 | -9/Scraptown | Given a B- rating by A0-MCA 1802 | -9/Scraptown | Found A0-MCA's Component Scanner 1844 | -9/Scraptown | Discovered exit to Factory (range 3) 1930 | -9/Scraptown | Met Optimus 1930 | -9/Scraptown | Accepted into 0bPrime 1949 | -9/Scraptown | Entered Factory 1949 | -6/Factory | Accompanied by 7 allies 1949 | -6/Factory | Evolved 6 slots: Propulsion x4, Utility x2 2033 | -6/Factory | Identified exit to Lower Caves 2065 | -6/Factory | Identified exit to Factory 2117 | -6/Factory | Loaded intel: 8 recycling unit locations 2166 | -6/Factory | Learned location of Protoforge (-2) 2174 | -6/Factory | Learned 4 Hub_04(d) zone layouts 2218 | -6/Factory | Entered Lower Caves 2219 | -6/Lower Caves | A Derelict revealed a hidden shortcut to a safe place 2222 | -6/Lower Caves | Identified exit to Zion 2238 | -6/Lower Caves | Entered Zion 2274 | -6/Zion | Learned Factory non-interactive machine intel 2307 | -6/Zion | Turned away by Imprinter 2390 | -6/Zion | Identified exit to Proximity Caves 2390 | -6/Zion | Discovered exit to Proximity Caves (range 13) 2392 | -6/Zion | Visited the Megawrench Repair Shop 2394 | -6/Zion | Megawrench repaired 7 parts 2400 | -6/Zion | Entered Proximity Caves 2415 | -5/Proximity Caves | Build established: Hacker-Sprinter 2498 | -5/Proximity Caves | Discovered exit to Factory (range 14) 2522 | -5/Proximity Caves | Entered Factory 2522 | -5/Factory | Evolved 2 slots: Propulsion x1, Utility x1 2523 | -5/Factory | Identified exit to Extension 2524 | -5/Factory | Loaded intel: 265 non-interactive machine locations 2563 | -5/Factory | Identified exit to Factory 2565 | -5/Factory | Identified exit to Garrison 2571 | -5/Factory | Entered Garrison 2572 | -5/Garrison | Spotted B-90 Cyclops 2572 | -5/Garrison | Spotted B-75 Beast 2589 | -5/Garrison | Triggered checkpoint 2595 | -5/Garrison | Triggered checkpoint 2609 | -5/Garrison | Discovered exit to Factory (range 11) 2613 | -5/Garrison | Rescued a captive Derelict 2614 | -5/Garrison | Rescued a captive Derelict 2628 | -5/Garrison | Attempted to access garrison exit controls, blocked by remote lockdown 2676 | -5/Garrison | Triggered checkpoint 2687 | -5/Garrison | Discovered exit to Factory (range 73) 2687 | -5/Garrison | Discovered exit to Factory (range 34) 2687 | -5/Garrison | Discovered exit to Factory (range 30) 2692 | -5/Garrison | Entered Factory 2692 | -4/Factory | Evolved 2 slots: Power x1, Utility x1 2762 | -4/Factory | Fabricated Machine Analyzer (x2) 2810 | -4/Factory | Fabricated Adv. Signal Interpreter (x2) 2853 | -4/Factory | Identified exit to Research 2855 | -4/Factory | Loaded intel: 8 recycling unit locations 2904 | -4/Factory | Fabricated A-27 Freighter (x1) 2919 | -4/Factory | Identified exit to Upper Caves 2919 | -4/Factory | Discovered exit to Upper Caves (range 15) 3045 | -4/Factory | Fabricated M-22 Extractor? 3087 | -4/Factory | Entered Research 3087 | -3/Research | Evolved 2 slots: Utility x2 3106 | -3/Research | Identified exit to Research 3106 | -3/Research | Discovered exit to Research (range 16) 3141 | -3/Research | Entered another Research area 3141 | -2/Research | Evolved 2 slots: Utility x2 3145 | -2/Research | Loaded intel: 5 recycling unit locations 3215 | -2/Research | Identified exit to Testing 3226 | -2/Research | Spotted B-90 Cyclops 3233 | -2/Research | Identified exit to Access 3233 | -2/Research | Discovered exit to Access (range 19) 3263 | -2/Research | Entered Testing 3289 | -2/Testing | Found Prototype Energy Gun 3289 | -2/Testing | Identified Warp Gun 3324 | -2/Testing | Spotted PD-WJBO1KB284 3337 | -2/Testing | Found Prototype Device 3337 | -2/Testing | Identified Exp. Hardlight Generator 3385 | -2/Testing | Spotted Fortress 3397 | -2/Testing | Identified exit to Section 7 3397 | -2/Testing | Discovered exit to Section 7 (range 6) 3397 | -2/Testing | Identified exit to Protoforge 3397 | -2/Testing | Discovered exit to Protoforge (range 7) 3399 | -2/Testing | Entered Protoforge 3402 | -2/Protoforge | Build established: Hacker-Scout 3414 | -2/Protoforge | Superfortress began startup sequence 3419 | -2/Protoforge | Spotted Hotshot 3419 | -2/Protoforge | Spotted Hotshot 3464 | -2/Protoforge | Spotted Hotshot 3464 | -2/Protoforge | Spotted Hotshot 3471 | -2/Protoforge | Spotted AP7-3 3472 | -2/Protoforge | Spotted AP7-3 3475 | -2/Protoforge | Spotted SKR-2 3475 | -2/Protoforge | Spotted SKR-2 3475 | -2/Protoforge | Spotted SKR-2 3485 | -2/Protoforge | Spotted EXE-6 3485 | -2/Protoforge | Spotted EXE-6 3490 | -2/Protoforge | UFD initiated attack on Protoforge 3490 | -2/Protoforge | Loaded intel: 3 recycling unit locations 3526 | -2/Protoforge | Optimus greeted in Protoforge 3544 | -2/Protoforge | Found UFD Drillbomb 3553 | -2/Protoforge | Spotted EXE-6 3553 | -2/Protoforge | Spotted EXE-6 3560 | -2/Protoforge | Lost 4 allies 3588 | -2/Protoforge | Installed UFD Drillbomb at designated target 3588 | -2/Protoforge | UFD reported confirmed Drillbomb installation 3621 | -2/Protoforge | Met 7R-MNS 3622 | -2/Protoforge | Found UFD Drillbomb 3669 | -2/Protoforge | Spotted Hotshot 3669 | -2/Protoforge | Spotted Hotshot 3680 | -2/Protoforge | Installed UFD Drillbomb at designated target 3680 | -2/Protoforge | UFD reported confirmed Drillbomb installation 3700 | -2/Protoforge | Found UFD Drillbomb 3719 | -2/Protoforge | Spotted Executioner 3722 | -2/Protoforge | Spotted Striker 3733 | -2/Protoforge | Spotted Hotshot 3734 | -2/Protoforge | Spotted Hotshot 3754 | -2/Protoforge | Lost 3 allies 3755 | -2/Protoforge | Discovered exit to Access (range 15) 3755 | -2/Protoforge | Spotted Executioner 3761 | -2/Protoforge | Spotted Striker 3763 | -2/Protoforge | Spotted Striker 3769 | -2/Protoforge | Installed UFD Drillbomb at designated target 3769 | -2/Protoforge | UFD reported confirmed Drillbomb installation 3786 | -2/Protoforge | Found UFD Drillbomb 3798 | -2/Protoforge | Lost 4 parts (1p1n2u) 3801 | -2/Protoforge | P-80 Master assimilated allied 02F06-K 3802 | -2/Protoforge | Spotted 02F06-K 3805 | -2/Protoforge | Spotted Executioner 3805 | -2/Protoforge | Spotted Striker 3808 | -2/Protoforge | Spotted Striker 3809 | -2/Protoforge | Spotted Striker 3812 | -2/Protoforge | Spotted Executioner 3814 | -2/Protoforge | Spotted Executioner 3827 | -2/Protoforge | Installed UFD Drillbomb at designated target 3827 | -2/Protoforge | UFD reported confirmed Drillbomb installation 3829 | -2/Protoforge | Spotted Executioner 3833 | -2/Protoforge | Core integrity fell below 50% 3862 | -2/Protoforge | Lost 11 parts (1p6n4u) 3893 | -2/Protoforge | Lost 6 allies 3906 | -2/Protoforge | Found Prototype Device 3906 | -2/Protoforge | Identified Exp. Trap Extractor 3911 | -2/Protoforge | Found Prototype Device 3911 | -2/Protoforge | Identified Cep. Recoil Nullifier 4012 | -2/Protoforge | Fabricated Q-thruster (x2) 4031 | -2/Protoforge | Found UFD Drillbomb 4126 | -2/Protoforge | Spotted Executioner 4127 | -2/Protoforge | Build established: Hacker-Mutant 4127 | -2/Protoforge | Spotted Executioner 4148 | -2/Protoforge | Lost 4 allies 4160 | -2/Protoforge | Installed UFD Drillbomb at designated target 4160 | -2/Protoforge | UFD reported confirmed Drillbomb installation 4196 | -2/Protoforge | Spotted Executioner 4232 | -2/Protoforge | Lost 4 allies 4312 | -2/Protoforge | Spotted Executioner 4315 | -2/Protoforge | Spotted Striker 4799 | -2/Protoforge | Spotted Executioner 4799 | -2/Protoforge | Spotted Striker 4804 | -2/Protoforge | Spotted Striker 4804 | -2/Protoforge | Spotted Executioner 4834 | -2/Protoforge | Spotted Executioner 4852 | -2/Protoforge | Lost 5 allies 4908 | -2/Protoforge | Core integrity fell below 20% 4931 | -2/Protoforge | Spotted Executioner 4955 | -2/Protoforge | Destroyed by P-80 Master with Gamma Rifle Last Messages --------------- 04859_ Penetrated by Slug. 04863_ System corrupted: Matter fused (-10). 04863_ Acquired 10 matter. 04899_ Slug penetrates Reinforced Barrier. 04900_ Slug penetrates 02F89-D. 04902_ CPS modules attach to B-74 Champion. 04903_ Slug penetrates 02F89-D. 04905_ B-74 Champion suffers critical hit (Destroy). 04906_ Slug penetrates 02F89-D. 04907_ H-88 Terminator destroyed. 04907_ CPS modules attach to B-74 Champion. 04907_ Q-thruster destroyed. 04907_ Penetrated by Slug. 04936_ System corrupted: Energy discharge (-34). 04944_ ALERT: Hostiles spotted, dispatching reinforcements to Terminal F006. 04944_ Slug penetrates Reinforced Barrier. 04947_ Penetrated by Slug. 04947_ Slug penetrates Fabricator. 04951_ Penetrated by Slug. Map ----- +----------------------------------------------------+ | " "" " "" "" " #" ""###?? | | " % " "# """#?? | | " " %"" % # """#?? | | "" %" %"" " """#?? | | "" %"" % "%" % %% " F"#?? | | %" "" %%% """ # """#?? | | " ""% % % " """ "# "" #?? | | " " "" %%"% %%%%%% "# "###?? | | " """ " %% % % # ###??? | | " """ % % "# """ ?? | | " " % %% "" % # """"#? | | """""""" %% " % %% F""#? | | """"""""""" "%%% " "% %% ""#? | | """""""""""" % " "%% h% ; % """#? | | """"""""""""" " "% %" p " %% "" #? | | """""""""""""" "" % %% # "#####? | | """"""""""""""" "% %%% "#" "#????? | | """""""""""""""" %% % % ###"F ""###????? | | """"""""""""""""" "%% """% s" #?#"""""#??????? | | """"""""""""""""" "" % ""% #?#"""""#??????? | | """"""""""""""""" " %"%% "#?#######??????? | | """""""""""""""""" %"% % %%% " "#??#???????????? | | """""""""""""""""" " % %" %" " "#??????????????? | | """"""""""""""""""% % %% " " "##???#?????????? | | ""?""""""""""""""" %% %% ###?#??#???????? | | """"""""""""""""""%%%% @ % ##?##?#????????? | | """"""""""""""""""%%%% % ##?##??###?????? | | """"""""""""""""""%%% %%% % #?#?#??#??????? | | """"""""""""""""""%%%% "% % % % #####?##??????? | | """"""""""""""""""%%% "%% " ########?##????? | | """""""""""""""""%%" %" % %%"#?##?#?#???????? | | """""""""""""""""% " " % ####?#####?###?? | | """""""""""""""""% "" """% ###??###??#????? | | """""""""""""""" % " % #?##?#?##?##???? | | """"""""""""""" ""% " % ###??###??#?#??? | | """""""""""""" % % " %" " #?#?##?########? | | """"""""""""" % " " " %%%% ################ | | """""""""""" %" %"% ; ######?????? | | """"""""""" "" " "" % % ## ###??###??##? | | """""""" % "" % "" % % ##?#?#??#####??# | | %"" "" """ p%% %"" #?##?##?#???###? | | ""% % " % """" #####??########? | | % " % " " %""" ###?#?#?##??##?# | | ""%" ""%% " """ " "&######??#??##? | | " %"" ""%"%""""" "&##??#??#####?# | | " " %%%% "&###?##?###??## | | " %"% """ % "" """" &&#??#####??##?# | | %%% "% "" "" " "" "&############?# | | " % ""%" " "" "" "" &&####??#######? | | "" """ " " " "" ########??###### | +----------------------------------------------------+ Best States ------------- Heat Dissipation 81 Energy Generation 49 Energy Capacity 550 Matter Stores 300 Matter Capacity 300 Sight Range 16 Robot Scan Range 16 Terrain Scan Range 24 Terrain Scan Density 410 ECM Strength 2 Cloak Strength 3 Armor Coverage 150 Resistance: KI 35 Resistance: TH 35 Resistance: EX 35 Resistance: EM 35 Resistance: I 35 Resistance: S 35 Resistance: P 35 Power Shielding 33 Propulsion Shielding 33 Evasion (%) 77 Offensive Hacking 52 Item Schematics ----------------- Machine Analyzer | -9/Storage | Hacked Adv. Sensor Array | -6/Factory | Hacked Adv. Signal Interpreter | -6/Factory | Hacked Q-thruster | -4/Factory | Hacked Robot Schematics ------------------ None Fabricated ------------ Machine Analyzer | x2 | -4/Factory Adv. Signal Interpreter | x2 | -4/Factory A-27 Freighter | x1 | -4/Factory | Preloaded M-22 Extractor | x1 | -4/Factory | Preloaded Q-thruster | x2 | -2/Protoforge Repaired ---------- Nothing Alien Tech Used ----------------- None Achievements -------------- None Challenges ------------ No Salvage Game ------ Seed SignalMultitargetingStatue Manual? 0 Play Time 01:12:34 Cumulative 1084.6 hours Start 2025.06.03 @ 18:17:42 End 2025.06.03 @ 19:33:45 Sessions 1 Manual Loads 0 Difficulty Explorer Special Mode None Game No. 1342 Rogue 1058 Adventurer 124 Explorer 160 Win Type - Total 48 Types 34/0/8/4/1/0/0/1/0/0 Lore% 91 Gallery% 86 Achievement% 80 Wizard Run 0 Options --------- Layout 0 ASCII 0 Keyboard 1 Movement Numpad Keybinds 0 Fullscreen 2 Font 18/X11 Map View 76x50 Zoom Use 0% Tactical HUD 1 Map Filters NONE Filters NONE Steam 1 RUN: ad1f14ff-4141-469f-8664-f51aa35fabff